[Event "Goteborg Open 2024"]
[Site "Goteborgs Schackcentrum, Vegatan 20, Gothenburg, Sweden"]
[Date "2024.08.02"]
[Round "2.5"]
[White "Utriainen, Tapani"]
[Black "Kallen, Jonas"]
[Result "1-0"]
[TimeControl "15 minutes + 5 seconds per move from move one (Round 1 - 4) / 90 minutes + 30 seconds per move from move one (Round 5 - 8)"]
[WhiteFideId "16300696"]
[BlackFideId "1712896"]
[WhiteElo "1914"]
[BlackElo "2017"]

1. d4 {[%clk 00:15:08]} {[%emt 00:00:01]} Nf6 {[%clk 00:15:08]} {[%emt
00:00:02]} 2. c4 {[%clk 00:15:12]} {[%emt 00:00:01]} g6 {[%clk 00:15:12]}
{[%emt 00:00:02]} 3. f3 {[%clk 00:15:16]} {[%emt 00:00:01]} c5 {[%clk
00:15:13]} {[%emt 00:00:04]} 4. d5 {[%clk 00:15:18]} {[%emt 00:00:02]} e6
{[%clk 00:15:13]} {[%emt 00:00:05]} 5. Nc3 {[%clk 00:14:30]} {[%emt 00:00:53]}
d6 {[%clk 00:15:02]} {[%emt 00:00:16]} 6. e4 {[%clk 00:14:15]} {[%emt
00:00:20]} exd5 {[%clk 00:14:35]} {[%emt 00:00:32]} 7. cxd5 {[%clk 00:14:15]}
{[%emt 00:00:06]} Bg7 {[%clk 00:14:30]} {[%emt 00:00:09]} 8. Bb5+ {[%clk
00:14:04]} {[%emt 00:00:16]} Bd7 {[%clk 00:14:31]} {[%emt 00:00:04]} 9. Bxd7+
{[%clk 00:13:43]} {[%emt 00:00:26]} Nbxd7 {[%clk 00:14:34]} {[%emt 00:00:02]}
10. Nge2 {[%clk 00:13:36]} {[%emt 00:00:12]} a6 {[%clk 00:14:09]} {[%emt
00:00:31]} 11. a4 {[%clk 00:13:39]} {[%emt 00:00:02]} O-O {[%clk 00:14:08]}
{[%emt 00:00:05]} 12. O-O {[%clk 00:13:35]} {[%emt 00:00:10]} Rb8 {[%clk
00:13:36]} {[%emt 00:00:37]} 13. f4 {[%clk 00:11:33]} {[%emt 00:02:06]} Re8
{[%clk 00:12:42]} {[%emt 00:00:58]} 14. Ng3 {[%clk 00:11:08]} {[%emt 00:00:32]}
c4 {[%clk 00:12:02]} {[%emt 00:00:44]} 15. Be3 {[%clk 00:09:43]} {[%emt
00:01:30]} Qc7 {[%clk 00:10:09]} {[%emt 00:01:59]} 16. Qf3 {[%clk 00:07:55]}
{[%emt 00:01:52]} Nc5 {[%clk 00:09:30]} {[%emt 00:00:44]} 17. Bxc5 {[%clk
00:05:57]} {[%emt 00:02:04]} Qxc5+ {[%clk 00:09:32]} {[%emt 00:00:02]} 18. Kh1
{[%clk 00:06:01]} b5 {[%clk 00:08:31]} {[%emt 00:01:06]} 19. axb5 {[%clk
00:05:59]} {[%emt 00:00:07]} axb5 {[%clk 00:08:35]} {[%emt 00:00:01]} 20. f5
{[%clk 00:05:23]} {[%emt 00:00:42]} b4 {[%clk 00:07:49]} {[%emt 00:00:51]} 21.
Nce2 {[%clk 00:04:00]} {[%emt 00:01:28]} Rf8 {[%clk 00:06:58]} {[%emt
00:00:56]} 22. fxg6 {[%clk 00:02:43]} {[%emt 00:01:22]} hxg6 {[%clk 00:06:45]}
{[%emt 00:00:18]} 23. h4 {[%clk 00:02:05]} {[%emt 00:00:43]} Nd7 {[%clk
00:06:19]} {[%emt 00:00:31]} 24. Rab1 {[%clk 00:00:33]} {[%emt 00:01:37]} Ne5
{[%clk 00:06:12]} {[%emt 00:00:11]} 25. Qf4 {[%clk 00:00:17]} {[%emt 00:00:22]}
Nd3 {[%clk 00:05:59]} {[%emt 00:00:18]} 26. Qd2 {[%clk 00:00:19]} {[%emt
00:00:03]} Nxb2 {[%clk 00:05:00]} {[%emt 00:01:04]} 27. h5 {[%clk 00:00:13]}
{[%emt 00:00:11]} c3 {[%clk 00:04:52]} {[%emt 00:00:13]} 28. Qg5 {[%clk
00:00:16]} {[%emt 00:00:02]} f6 {[%clk 00:03:28]} {[%emt 00:01:28]} 29. Qxg6
{[%clk 00:00:17]} {[%emt 00:00:05]} Qe3 {[%clk 00:01:51]} {[%emt 00:01:41]} 30.
Nf4 {[%clk 00:00:06]} {[%emt 00:00:17]} f5 {[%clk 00:00:45]} {[%emt 00:01:11]}
31. h6 {[%clk 00:00:09]} Rb7 {[%clk 00:00:39]} {[%emt 00:00:11]} 32. hxg7
{[%clk 00:00:13]} {[%emt 00:00:01]} Rxg7 {[%clk 00:00:39]} {[%emt 00:00:05]} 33.
Qe6+ {[%clk 00:00:17]} {[%emt 00:00:01]} Kh8 {[%clk 00:00:12]} {[%emt
00:00:32]} 34. Nxf5 {[%clk 00:00:21]} {[%emt 00:00:01]} Rxf5 {[%clk 00:00:10]}
{[%emt 00:00:08]} 35. Qxf5 {[%clk 00:00:25]} Qg3 {[%clk 00:00:11]} {[%emt
00:00:03]} 36. Qf8+ {[%clk 00:00:29]} {[%emt 00:00:02]} Kh7 {[%clk 00:00:14]}
{[%emt 00:00:02]} 37. Qf5+ {[%clk 00:00:32]} {[%emt 00:00:03]} Kh8 {[%clk
00:00:21]} {[%emt 00:01:06]} 38. Qf8+ {[%clk 00:00:36]} {[%emt 00:00:01]} Kh7
{[%clk 00:00:25]} 39. Qf5+ {[%clk 00:00:38]} {[%emt 00:00:03]} Kh6 {[%clk
00:00:29]} {[%emt 00:00:01]} 40. Qh5# {[%clk 00:00:42]} {[%emt 00:00:07]} 1-0

[Event "Goteborg Open 2024"]
[Site "Goteborgs Schackcentrum, Vegatan 20, Gothenburg, Sweden"]
[Date "2024.08.02"]
[Round "2.6"]
[White "Wickstrom, Carina"]
[Black "Garby, Jacob"]
[Result "1-0"]
[TimeControl "15 minutes + 5 seconds per move from move one (Round 1 - 4) / 90 minutes + 30 seconds per move from move one (Round 5 - 8)"]
[WhiteFideId "1743201"]
[BlackFideId "1786520"]
[WhiteElo "2013"]
[BlackElo "1895"]

1. Nf3 {[%clk 00:15:07]} {[%emt 00:00:03]} d5 {[%clk 00:15:06]} {[%emt
00:00:04]} 2. g3 {[%clk 00:15:09]} {[%emt 00:00:04]} Nf6 {[%clk 00:14:57]}
{[%emt 00:00:13]} 3. Bg2 {[%clk 00:15:12]} {[%emt 00:00:02]} Nc6 {[%clk
00:14:52]} {[%emt 00:00:11]} 4. d4 {[%clk 00:15:09]} {[%emt 00:00:07]} h6
{[%clk 00:14:32]} {[%emt 00:00:26]} 5. O-O {[%clk 00:15:10]} {[%emt 00:00:03]}
Bf5 {[%clk 00:14:13]} {[%emt 00:00:24]} 6. c4 {[%clk 00:13:32]} {[%emt
00:01:43]} dxc4 {[%clk 00:13:20]} {[%emt 00:00:59]} 7. Na3 {[%clk 00:12:36]}
{[%emt 00:01:01]} Qd5 {[%clk 00:11:38]} {[%emt 00:01:46]} 8. Ne5 {[%clk
00:06:53]} {[%emt 00:05:48]} Be4 {[%clk 00:10:44]} {[%emt 00:00:59]} 9. f3
{[%clk 00:06:42]} {[%emt 00:00:15]} Bh7 {[%clk 00:09:02]} {[%emt 00:01:48]} 10.
Nxc6 {[%clk 00:06:35]} {[%emt 00:00:12]} Qxc6 {[%clk 00:08:44]} {[%emt
00:00:23]} 11. e4 {[%clk 00:06:27]} {[%emt 00:00:13]} e6 {[%clk 00:08:00]}
{[%emt 00:00:50]} 12. Nc2 {[%clk 00:05:55]} {[%emt 00:00:37]} Rd8 {[%clk
00:07:50]} {[%emt 00:00:15]} 13. Qe2 {[%clk 00:05:44]} {[%emt 00:00:16]} Be7
{[%clk 00:07:08]} {[%emt 00:00:46]} 14. Bf4 {[%clk 00:04:48]} {[%emt 00:01:02]}
O-O {[%clk 00:06:42]} {[%emt 00:00:31]} 15. Kh1 {[%clk 00:04:30]} {[%emt
00:00:22]} Rd7 {[%clk 00:06:18]} {[%emt 00:00:29]} 16. a4 {[%clk 00:03:57]}
{[%emt 00:00:38]} a5 {[%clk 00:06:08]} {[%emt 00:00:16]} 17. Rfc1 {[%clk
00:03:45]} {[%emt 00:00:17]} Ne8 {[%clk 00:05:12]} {[%emt 00:01:01]} 18. Be3
{[%clk 00:03:04]} {[%emt 00:00:46]} c3 {[%clk 00:05:04]} {[%emt 00:00:13]} 19.
bxc3 {[%clk 00:02:34]} {[%emt 00:00:34]} Qxc3 {[%clk 00:04:57]} {[%emt
00:00:13]} 20. Na3 {[%clk 00:02:33]} {[%emt 00:00:05]} Qb3 {[%clk 00:04:33]}
{[%emt 00:00:27]} 21. Nb5 {[%clk 00:02:29]} {[%emt 00:00:11]} e5 {[%clk
00:02:20]} {[%emt 00:02:19]} 22. Bh3 {[%clk 00:02:10]} {[%emt 00:00:24]} f5
{[%clk 00:02:00]} {[%emt 00:00:25]} 23. d5 {[%clk 00:01:56]} {[%emt 00:00:19]}
Nd6 {[%clk 00:00:36]} {[%emt 00:01:29]} 24. Nxd6 {[%clk 00:00:43]} {[%emt
00:01:17]} Rxd6 {[%clk 00:00:39]} {[%emt 00:00:02]} 25. Rcb1 {[%clk 00:00:32]}
{[%emt 00:00:17]} Qc3 {[%clk 00:00:32]} {[%emt 00:00:11]} 26. Rc1 {[%clk
00:00:19]} {[%emt 00:00:18]} Qb4 {[%clk 00:00:18]} {[%emt 00:00:19]} 27. Bc5
{[%clk 00:00:22]} {[%emt 00:00:02]} Qb3 {[%clk 00:00:10]} {[%emt 00:00:13]} 28.
Bxd6 {[%clk 00:00:14]} {[%emt 00:00:13]} cxd6 {[%clk 00:00:12]} {[%emt
00:00:04]} 29. exf5 {[%clk 00:00:14]} {[%emt 00:00:05]} Rxf5 {[%clk 00:00:11]}
{[%emt 00:00:06]} 30. Bxf5 {[%clk 00:00:17]} {[%emt 00:00:01]} Bxf5 {[%clk
00:00:14]} {[%emt 00:00:02]} 31. Rcb1 {[%clk 00:00:10]} {[%emt 00:00:13]} Qxd5
{[%clk 00:00:14]} {[%emt 00:00:05]} 32. Rd1 {[%clk 00:00:12]} {[%emt 00:00:03]}
Qc6 {[%clk 00:00:16]} {[%emt 00:00:02]} 33. g4 {[%clk 00:00:12]} {[%emt
00:00:05]} Bxg4 {[%clk 00:00:19]} {[%emt 00:00:02]} 34. Rf1 {[%clk 00:00:15]}
{[%emt 00:00:02]} Be6 {[%clk 00:00:20]} {[%emt 00:00:05]} 35. Rg1 {[%clk
00:00:18]} {[%emt 00:00:02]} Bd5 {[%clk 00:00:23]} {[%emt 00:00:02]} 36. Raf1
{[%clk 00:00:21]} Bg5 {[%clk 00:00:25]} {[%emt 00:00:03]} 37. Rg3 {[%clk
00:00:21]} {[%emt 00:00:06]} Kh7 {[%clk 00:00:26]} {[%emt 00:00:04]} 38. Qd3+
{[%clk 00:00:23]} {[%emt 00:00:03]} Kg8 {[%clk 00:00:28]} {[%emt 00:00:02]} 39.
Qf5 {[%clk 00:00:25]} {[%emt 00:00:03]} Qe8 {[%clk 00:00:15]} {[%emt 00:00:18]}
40. Rfg1 {[%clk 00:00:26]} {[%emt 00:00:04]} Be6 {[%clk 00:00:14]} {[%emt
00:00:07]} 41. Qd3 {[%clk 00:00:28]} {[%emt 00:00:03]} d5 {[%clk 00:00:17]}
{[%emt 00:00:02]} 42. h4 {[%clk 00:00:31]} {[%emt 00:00:02]} e4 {[%clk
00:00:14]} {[%emt 00:00:08]} 43. Qe2 {[%clk 00:00:32]} {[%emt 00:00:03]} exf3
{[%clk 00:00:16]} {[%emt 00:00:04]} 44. Qxf3 {[%clk 00:00:30]} {[%emt
00:00:06]} Qc6 {[%emt 00:00:17]} 45. hxg5 {[%clk 00:00:32]} {[%emt 00:00:02]}
hxg5 {[%clk 00:00:09]} {[%emt 00:00:02]} 46. Rxg5 {[%clk 00:00:35]} {[%emt
00:00:02]} d4 {[%clk 00:00:09]} {[%emt 00:00:05]} 47. Rxg7+ {[%clk 00:00:34]}
{[%emt 00:00:05]} Kh8 {[%clk 00:00:13]} {[%emt 00:00:02]} 48. Qxc6 {[%clk
00:00:34]} {[%emt 00:00:05]} bxc6 {[%emt 00:00:06]} 49. Re7 {[%clk 00:00:33]}
{[%emt 00:00:01]} Bd5+ {[%clk 00:00:20]} {[%emt 00:00:01]} 50. Kh2 {[%clk
00:00:37]} {[%emt 00:00:01]} c5 {[%clk 00:00:19]} {[%emt 00:00:05]} 51. Rg5
{[%clk 00:00:36]} {[%emt 00:00:06]} Bb3 {[%clk 00:00:19]} {[%emt 00:00:06]} 52.
Rxc5 {[%clk 00:00:37]} {[%emt 00:00:04]} d3 {[%clk 00:00:21]} {[%emt 00:00:02]}
53. Rc8+ {[%clk 00:00:40]} {[%emt 00:00:02]} Bg8 {[%clk 00:00:25]} {[%emt
00:00:01]} 54. Ree8 {[%clk 00:00:44]} {[%emt 00:00:02]} d2 {[%clk 00:00:27]}
{[%emt 00:00:02]} 55. Rxg8+ {[%clk 00:00:46]} {[%emt 00:00:03]} Kh7 {[%clk
00:00:31]} {[%emt 00:00:02]} 56. Rgd8 {[%clk 00:00:50]} {[%emt 00:00:01]} 1-0

[Event "Goteborg Open 2024"]
[Site "Goteborgs Schackcentrum, Vegatan 20, Gothenburg, Sweden"]
[Date "2024.08.02"]
[Round "2.7"]
[White "Degerfeldt, Sven"]
[Black "Wesslen, Ulf"]
[Result "1-0"]
[TimeControl "15 minutes + 5 seconds per move from move one (Round 1 - 4) / 90 minutes + 30 seconds per move from move one (Round 5 - 8)"]
[WhiteFideId "1717430"]
[BlackFideId "1705199"]
[WhiteElo "1902"]
[BlackElo "1953"]

1. d4 {[%clk 00:15:05]} {[%emt 00:00:04]} Nf6 {[%clk 00:15:03]} {[%emt
00:00:08]} 2. Nf3 {[%clk 00:15:08]} {[%emt 00:00:01]} g6 {[%clk 00:14:53]}
{[%emt 00:00:16]} 3. c4 {[%clk 00:14:59]} {[%emt 00:00:14]} Bg7 {[%clk
00:14:52]} {[%emt 00:00:06]} 4. e3 {[%clk 00:15:00]} {[%emt 00:00:04]} d6
{[%clk 00:14:44]} {[%emt 00:00:13]} 5. Be2 {[%clk 00:15:02]} {[%emt 00:00:03]}
O-O {[%clk 00:14:27]} {[%emt 00:00:21]} 6. O-O {[%clk 00:15:03]} {[%emt
00:00:04]} Nbd7 {[%clk 00:13:46]} {[%emt 00:00:47]} 7. Nc3 {[%clk 00:14:07]}
{[%emt 00:01:01]} c6 {[%clk 00:12:51]} {[%emt 00:01:01]} 8. Qc2 {[%clk
00:14:00]} {[%emt 00:00:11]} e5 {[%clk 00:12:37]} {[%emt 00:00:19]} 9. Rd1
{[%clk 00:13:49]} {[%emt 00:00:16]} Qc7 {[%clk 00:11:29]} {[%emt 00:01:13]} 10.
b3 {[%clk 00:13:48]} {[%emt 00:00:07]} Re8 {[%clk 00:11:19]} {[%emt 00:00:14]}
11. Bb2 {[%clk 00:13:46]} {[%emt 00:00:07]} e4 {[%clk 00:09:52]} {[%emt
00:01:33]} 12. Nd2 {[%clk 00:13:48]} {[%emt 00:00:02]} d5 {[%clk 00:09:55]}
{[%emt 00:00:02]} 13. Rac1 {[%clk 00:13:41]} {[%emt 00:00:13]} Qa5 {[%clk
00:09:07]} {[%emt 00:00:53]} 14. a3 {[%clk 00:13:03]} {[%emt 00:00:43]} a6
{[%clk 00:07:21]} {[%emt 00:01:52]} 15. b4 {[%clk 00:12:52]} {[%emt 00:00:15]}
Qd8 {[%clk 00:07:17]} {[%emt 00:00:09]} 16. Qb3 {[%clk 00:11:42]} {[%emt
00:01:14]} Nf8 {[%clk 00:07:06]} {[%emt 00:00:17]} 17. c5 {[%clk 00:09:32]}
{[%emt 00:02:14]} Bg4 {[%clk 00:05:35]} {[%emt 00:01:35]} 18. h3 {[%clk
00:09:10]} {[%emt 00:00:27]} Bxe2 {[%clk 00:05:28]} {[%emt 00:00:14]} 19. Nxe2
{[%clk 00:09:12]} {[%emt 00:00:02]} Ne6 {[%clk 00:05:03]} {[%emt 00:00:30]} 20.
a4 {[%clk 00:09:09]} {[%emt 00:00:09]} Nd7 {[%clk 00:04:11]} {[%emt 00:00:57]}
21. Rf1 {[%clk 00:09:01]} {[%emt 00:00:12]} f5 {[%clk 00:04:08]} {[%emt
00:00:08]} 22. b5 {[%clk 00:08:00]} {[%emt 00:01:06]} Rb8 {[%clk 00:03:46]}
{[%emt 00:00:27]} 23. Bc3 {[%clk 00:06:23]} {[%emt 00:01:42]} Kh8 {[%clk
00:03:38]} {[%emt 00:00:14]} 24. Rb1 {[%clk 00:06:24]} {[%emt 00:00:03]} Rf8
{[%clk 00:03:37]} {[%emt 00:00:07]} 25. Qc2 {[%clk 00:06:05]} {[%emt 00:00:24]}
f4 {[%clk 00:02:59]} {[%emt 00:00:42]} 26. bxc6 {[%clk 00:05:50]} {[%emt
00:00:20]} bxc6 {[%clk 00:02:53]} {[%emt 00:00:12]} 27. Rxb8 {[%clk 00:05:54]}
{[%emt 00:00:01]} Nxb8 {[%clk 00:02:56]} {[%emt 00:00:02]} 28. exf4 {[%clk
00:04:31]} {[%emt 00:01:28]} Qh4 {[%clk 00:02:33]} {[%emt 00:00:27]} 29. Qb3
{[%clk 00:03:49]} {[%emt 00:00:47]} Nd7 {[%clk 00:01:52]} {[%emt 00:00:46]} 30.
Ba1 {[%clk 00:02:37]} {[%emt 00:01:17]} Qh5 {[%clk 00:01:49]} {[%emt 00:00:08]}
31. Ng3 {[%clk 00:02:28]} {[%emt 00:00:14]} Qh6 {[%clk 00:01:52]} {[%emt
00:00:03]} 32. Ne2 {[%clk 00:02:07]} {[%emt 00:00:26]} Nf6 {[%clk 00:01:46]}
{[%emt 00:00:11]} 33. Qe3 {[%clk 00:01:40]} {[%emt 00:00:31]} Nh5 {[%clk
00:01:42]} {[%emt 00:00:09]} 34. g3 {[%clk 00:01:36]} {[%emt 00:00:10]} Bf6
{[%clk 00:01:43]} {[%emt 00:00:04]} 35. Rb1 {[%clk 00:01:23]} {[%emt 00:00:18]}
Nhg7 {[%clk 00:01:41]} {[%emt 00:00:06]} 36. Kg2 {[%clk 00:01:19]} {[%emt
00:00:08]} Nf5 {[%clk 00:01:44]} {[%emt 00:00:03]} 37. Qc3 {[%clk 00:01:16]}
{[%emt 00:00:08]} g5 {[%clk 00:01:44]} {[%emt 00:00:05]} 38. Nf1 {[%clk
00:00:58]} {[%emt 00:00:24]} gxf4 {[%clk 00:01:45]} {[%emt 00:00:03]} 39. Nxf4
{[%clk 00:00:36]} {[%emt 00:00:27]} Nxf4+ {[%clk 00:01:47]} {[%emt 00:00:04]}
40. gxf4 {[%clk 00:00:39]} {[%emt 00:00:01]} Qxf4 {[%clk 00:01:43]} {[%emt
00:00:10]} 41. Ng3 {[%clk 00:00:32]} {[%emt 00:00:12]} Nh4+ {[%clk 00:01:43]}
{[%emt 00:00:05]} 42. Kg1 {[%clk 00:00:35]} {[%emt 00:00:02]} Nf3+ {[%clk
00:01:46]} {[%emt 00:00:03]} 43. Kg2 {[%clk 00:00:39]} Nxd4 {[%clk 00:01:29]}
{[%emt 00:00:22]} 44. Qe3 {[%clk 00:00:37]} {[%emt 00:00:06]} Qf3+ {[%clk
00:01:26]} {[%emt 00:00:08]} 45. Qxf3 {[%clk 00:00:39]} {[%emt 00:00:03]} exf3+
{[%clk 00:01:29]} {[%emt 00:00:02]} 46. Kf1 {[%clk 00:00:41]} {[%emt 00:00:03]}
Bg7 {[%clk 00:01:25]} {[%emt 00:00:09]} 47. Rb7 {[%clk 00:00:37]} {[%emt
00:00:08]} Ne6 {[%clk 00:01:23]} {[%emt 00:00:07]} 48. Bxg7+ {[%clk 00:00:31]}
{[%emt 00:00:11]} Nxg7 {[%clk 00:01:28]} {[%emt 00:00:01]} 49. Rc7 {[%clk
00:00:31]} {[%emt 00:00:04]} Rb8 {[%clk 00:01:27]} {[%emt 00:00:06]} 50. Ke1
{[%clk 00:00:27]} {[%emt 00:00:09]} Ne6 {[%clk 00:01:12]} {[%emt 00:00:21]} 51.
Rxc6 {[%emt 00:00:08]} Nf4 {[%clk 00:01:03]} {[%emt 00:00:10]} 52. Kd2 {[%clk
00:00:24]} {[%emt 00:00:08]} d4 {[%clk 00:01:01]} {[%emt 00:00:08]} 53. Rb6
{[%clk 00:00:18]} {[%emt 00:00:10]} Rc8 {[%clk 00:01:00]} {[%emt 00:00:06]} 54.
c6 {[%clk 00:00:21]} {[%emt 00:00:02]} Nxh3 {[%clk 00:01:00]} {[%emt 00:00:05]}
55. Nf5 {[%clk 00:00:13]} {[%emt 00:00:13]} Nxf2 {[%emt 00:00:14]} 56. Ne7
{[%clk 00:00:17]} Rc7 {[%clk 00:00:50]} {[%emt 00:00:08]} 57. Nd5 {[%clk
00:00:20]} {[%emt 00:00:01]} Ne4+ {[%clk 00:00:30]} {[%emt 00:00:26]} 58. Ke1
{[%clk 00:00:21]} {[%emt 00:00:04]} f2+ {[%clk 00:00:31]} {[%emt 00:00:04]} 59.
Kf1 {[%clk 00:00:23]} {[%emt 00:00:02]} d3 {[%clk 00:00:15]} {[%emt 00:00:22]}
60. Nxc7 {[%clk 00:00:27]} d2 {[%clk 00:00:19]} {[%emt 00:00:01]} 61. Rb1
{[%clk 00:00:30]} {[%emt 00:00:02]} Nc3 {[%clk 00:00:19]} {[%emt 00:00:05]} 62.
Ra1 {[%clk 00:00:25]} {[%emt 00:00:09]} d1=Q+ {[%clk 00:00:14]} {[%emt
00:00:11]} 63. Rxd1 {[%clk 00:00:29]} Nxd1 {[%clk 00:00:18]} 64. Ne6 {[%clk
00:00:32]} {[%emt 00:00:02]} Ne3+ {[%clk 00:00:21]} {[%emt 00:00:01]} 65. Ke2
{[%clk 00:00:36]} Nd5 {[%clk 00:00:25]} {[%emt 00:00:02]} 66. Kxf2 {[%clk
00:00:40]} Kg8 {[%clk 00:00:29]} {[%emt 00:00:01]} 67. c7 {[%clk 00:00:42]}
{[%emt 00:00:03]} Nxc7 {[%clk 00:00:33]} {[%emt 00:00:01]} 68. Nxc7 {[%clk
00:00:46]} {[%emt 00:00:01]} Kf7 {[%clk 00:00:36]} {[%emt 00:00:02]} 69. Ke3
{[%clk 00:00:51]} {[%emt 00:00:01]} Ke7 {[%clk 00:00:41]} 70. Kd4 {[%clk
00:00:54]} {[%emt 00:00:01]} Kd6 {[%clk 00:00:44]} {[%emt 00:00:02]} 71. Nxa6
{[%clk 00:00:58]} {[%emt 00:00:01]} Kc6 {[%clk 00:00:48]} {[%emt 00:00:02]} 72.
Nb4+ {[%clk 00:00:58]} {[%emt 00:00:05]} Kb6 {[%clk 00:00:52]} {[%emt
00:00:01]} 73. Kc4 {[%clk 00:01:02]} {[%emt 00:00:01]} Ka5 {[%clk 00:00:56]}
{[%emt 00:00:01]} 74. Kb3 {[%clk 00:01:06]} 1-0